Cogmind - Beta 16.1 @@@ ROGUE MODE // 2026.01.24 @ 18:18:09 Player: H3-MLN Result: Destroyed by TK-5661 with Heavy Laser Performance ------------- Evolutions (5) 2500 Regions Visited (9) 1800 Robots Destroyed (32) 160 Value Destroyed (1116) 1116 Prototype IDs (44) 880 Alien Tech Used (0) 0 Bonus (7172) 7172 TOTAL SCORE: 13628 Bonus ------- Follower Combat Kills 1572 Hunted by Unchained 500 Destroyed Unchained 1000 Subatomizer Sterilization 3000 Registered with UFD 300 Met Optimus in HQ 500 Met Imprinter 300 Cogmind --------- Core Integrity 0/1000 Matter 300/300 Energy 99/100 System Corruption 0% Temperature Cool (9) Movement Core (50) Location -5/Factory Parts ------- > --- POWER (1) -------- (None) > --- PROPULSION (4) --- (None) > --- UTILITY (6) ------ (None) > --- WEAPON (6) ------- (None) > --- INVENTORY (5) ---- Scrap Suit Makeshift Hacking Suite LU-1G1's Laser Shovel V4-D3R's Forcegen Peak State ------------ > --- POWER ------------ Enhanced Nuclear Core > --- PROPULSION ------- Medium Treads Overtuned Scrapsphere Overtuned Scrapsphere Overtuned Scrapsphere > --- UTILITY ---------- Scrap Suit High-capacity Storage Unit Remote Shield A0-MCA's Component Scanner Long-range Tractor Beam > --- WEAPON ----------- 1B-0RG's Assimilator DM-GVY's Chainsaw > --- INVENTORY -------- Heavy Deuterium Engine Medium Treads Overtuned Scrapsphere Scrap Suit Advanced Cooling System Improved Energy Well High-capacity Matter Pod Triangulator Advanced Melee Analysis Suite Microactuators Makeshift Hacking Suite Phasing AFG Antimatter Cannon Heavy Rocket Launcher LU-1G1's Laser Shovel Experimental Plasma Cutter CPS Tube CR-A16's Pointy Stick Thermal Lance [Rating: 131] Favorites ----------- Power Enhanced Nuclear Core Engine Subdweller Power Source Power Core Enhanced Nuclear Core Reactor Light Antimatter Reactor Propulsion Overtuned Scrapsphere Treads Light Treads Wheel Overtuned Scrapsphere Flight Unit Flight Unit Utility A0-MCA's Component Scanner Device Improved Sensor Array Storage High-capacity Storage Unit Processor A0-MCA's Component Scanner Protection Makeshift Thermal Plating Weapon 1B-0RG's Assimilator Energy Gun Subdweller Laser Energy Cannon Subdweller Beam Cannon Ballistic Gun Autogun Ballistic Cannon Battle Cannon Launcher Mini Grenade Launcher Special Weapon LU-1G1's Laser Shovel Impact Weapon Makeshift Hammer Slashing Weapon DM-GVY's Chainsaw Piercing Weapon CR-A16's Pointy Stick Special Melee Weapon 1B-0RG's Assimilator Build | -11 -10 -10 -9 -6 -6 -6 -6 -5 -5 ------- Run | Yrd Mat Sub Scr Fac Low Low Zio Pro Fac Slots Evolved 10 | . . . . 8 . . . . 2 Power . | . . . . . . . . . . Propulsion 2 | . . . . 2 . . . . . Utility 4 | . . . . 3 . . . . 1 Weapon 4 | . . . . 3 . . . . 1 Parts Attached 87 | 9 2 19 14 18 7 . 1 2 15 Power 9 | 1 . 3 1 2 1 . . . 1 Engine 7 | 1 . 3 1 1 . . . . 1 Core 1 | . . . . 1 . . . . . Reactor 1 | . . . . . 1 . . . . Propulsion 24 | 3 . 6 5 6 2 . . 1 1 Treads 3 | 1 . 1 . . . . . . 1 Leg . | . . . . . . . . . . Wheel 17 | 2 . 5 1 6 2 . . 1 . Hover . | . . . . . . . . . . Flight 4 | . . . 4 . . . . . . Utility 30 | 3 1 4 4 7 2 . 1 . 8 Device 16 | 2 . 3 2 4 1 . . . 4 Storage 8 | 1 1 1 1 1 . . 1 . 2 Processor 3 | . . . . 2 . . . . 1 Hackware . | . . . . . . . . . . Protection 3 | . . . 1 . 1 . . . 1 Artifact . | . . . . . . . . . . Weapon 24 | 2 1 6 4 3 2 . . 1 5 Energy Gun 1 | . . 1 . . . . . . . Energy Cannon 3 | . . 3 . . . . . . . Ballistic Gun 4 | 2 1 1 . . . . . . . Ballistic Cannon 2 | . . 1 . . . . . . 1 Launcher 3 | . . . 2 . 1 . . . . Special Weapon 6 | . . . 1 1 1 . . 1 2 Impact Weapon 1 | . . . 1 . . . . . . Slashing Weapon 1 | . . . . 1 . . . . . Piercing Weapon 2 | . . . . . . . . . 2 Special Melee Weapon 1 | . . . . 1 . . . . . Unidentified Prototypes 2 | . . . 1 1 . . . . . Parts Lost 15 | . . 3 . . . . . . 12 Power 3 | . . 1 . . . . . . 2 Propulsion 7 | . . 2 . . . . . . 5 Utility 3 | . . . . . . . . . 3 Weapon 2 | . . . . . . . . . 2 Highest Loss Streak 12 | . . 2 . . . . . . 12 To Critical Strikes . | . . . . . . . . . . Average Backups 17 | 3 11 15 16 17 19 19 18 19 17 Power . | . 1 . . . . . . . . Propulsion 3 | 2 4 4 5 4 3 3 1 . . Utility 6 | . 2 3 4 5 8 9 9 10 9 Weapon 5 | . 2 6 5 3 4 4 4 5 3 Tool/Special . | . . . . . . . . . . Unused Backups 32 | . 1 7 10 1 1 . 4 1 7 Power 1 | . . . . . . . . 1 . Propulsion 11 | . . 2 4 . 1 . 3 . 1 Utility 12 | . . 2 2 1 . . 1 . 6 Weapon 7 | . 1 3 3 . . . . . . Tool/Special 1 | . . . 1 . . . . . . Average Slot Usage (%) 77 | . 100 95 76 72 71 66 66 66 67 Engine 8 | . 14 14 13 4 . . . . . Core 2 | . . . . 1 6 6 6 6 4 Treads 5 | . 14 14 5 . . . . . . Wheel 17 | . 14 13 11 24 26 26 26 26 21 Flight 1 | . . . 5 . . . . . . Device 8 | . 14 10 2 12 11 13 12 13 15 Storage 9 | . 14 14 11 5 6 6 6 6 5 Processor 3 | . . . . 12 11 6 6 6 5 Energy Cannon 4 | . . 12 5 . . . . . . Ballistic Gun 1 | . 28 5 . . . . . . . Ballistic Cannon 4 | . . 6 7 . . . . . . Launcher 2 | . . . 7 . . . . . . Special Melee Weapon 2 | . . . . 4 5 6 6 5 4 Peak Build Rating 131 | 9 10 33 39 108 112 112 114 115 131 Average Rating 57 | 5 8 15 30 88 108 112 112 113 115 On Entrance 64 | . 7 10 33 39 108 112 112 114 114 Avg Prop Armor Cover (%) 9 | 12 11 11 10 5 2 . . . 7 Naked Turns 5 | . . . . . . . . . 5 Heaviest Build 216 | 14 31 216 216 111 111 108 112 112 121 Greatest Support 60 | 26 10 20 28 60 52 36 36 36 32 Greatest Overweight (x) 10 | 1 3 10 10 2 3 2 3 3 4 Average Overweight (x) 3 | . 2 3 4 . 2 2 2 2 2 Largest Inventory Capacity 35 | 8 15 35 35 20 20 20 20 20 20 Average Capacity 22 | 7 13 20 28 19 20 20 20 20 19 Most Carried 35 | 6 15 35 35 20 20 20 20 20 20 Average Carried 21 | 3 11 17 28 18 19 20 19 19 18 Final Capacity 35 | 8 15 35 20 20 20 20 20 20 5 Final Carried 35 | 6 15 35 20 20 20 20 20 20 5 Scrap Suit Usage (%) 1 | . . . . . 1 . . . . Class Distribution -------------------- 33% | Hauler-Mutant 28% | Scavenger-Scrapper 23% | Mutant 6% | Derelict-Mutant 5% | Scavenger-Mutant 3% | Commander-Mutant Dominant Class ---------------- Mutant | -10/Materials Mutant | -10/Subcaves Hauler-Mutant | -9/Scraptown Scavenger-Mutant | -6/Factory Mutant | -6/Lower Caves Scavenger-Scrapper | -6/Lower Caves Scavenger-Scrapper | -6/Zion Scavenger-Scrapper | -5/Proximity Caves Scavenger-Scrapper | -5/Factory Resources | -11 -10 -10 -9 -6 -6 -6 -6 -5 -5 ----------- Run | Yrd Mat Sub Scr Fac Low Low Zio Pro Fac Matter Collected 4751 | 341 53 281 150 719 577 720 217 291 1402 Remotely 1075 | . . . . 235 . . . . 840 Salvage Created 1320 | 126 . 721 24 176 41 . . . 232 Parts 101 | 10 . 43 1 18 2 . . . 27 Haulers Intercepted . | . . . . . . . . . . Recyclers Shooed 3 | 1 . . . . . . . . 2 Parts Field Recycled . | . . . . . . . . . . Retrieved Matter . | . . . . . . . . . . Parts Self-Destructed 49 | . . 15 . . 16 5 . 13 . Prevented . | . . . . . . . . . . Parts Restored . | . . . . . . . . . . Kills | -11 -10 -10 -9 -6 -6 -6 -6 -5 -5 ------- Run | Yrd Mat Sub Scr Fac Low Low Zio Pro Fac Combat Hostiles Destroyed 18 | . . 13 . . 1 . . . 4 Cannons 13 | . . 13 . . . . . . . AOE 5 | . . . . . 1 . . . 4 Classes Destroyed 9 | 2 . 2 1 1 1 . . . 2 Worker 4 | . . . . 1 . . . . 3 Builder 1 | . . . . . . . . . 1 Tunneler 5 | 3 . . . 2 . . . . . Recycler 3 | 1 . . . 1 . . . . 1 Turret 1 | . . . 1 . . . . . . Swarmer 3 | . . . . . . . . . 3 Grunt 1 | . . . . . 1 . . . . Sentry 1 | . . 1 . . . . . . . Subdweller 12 | . . 12 . . . . . . . Best Kill Streak 4 | 2 . 2 1 1 1 . . . 4 Combat Bots Only 3 | . . 2 . . 1 . . . 3 Max Kills in Single Turn 3 | 1 . 1 1 1 1 . . . 3 Gunslinging . | . . . . . . . . . . Exploded 2 | . . . . . 1 . . . 2 Melee . | . . . . . . . . . . Uniques/NPCs Destroyed 2 | . . . . . . . 1 . 1 Imprinter (-6/Zion) V4-D3R (-5/Factory) Combat | -11 -10 -10 -9 -6 -6 -6 -6 -5 -5 -------- Run | Yrd Mat Sub Scr Fac Low Low Zio Pro Fac Hostile Shots Fired 199 | . . 42 6 18 5 4 . . 124 Missed 74 | . . 15 5 6 3 4 . . 41 Hits 125 | . . 27 1 12 2 . . . 83 Melee 20 | . . . . . . . . . 20 Projectile 105 | . . 27 1 12 2 . . . 63 AOE 4 | . . 4 . . . . . . . Critical Strikes 8 | . . 1 . . . 1 . . 6 Damage Taken 3737 | . . 526 5 85 39 35 . 22 3025 Core 1061 | . . 49 . 3 . . . 9 1000 Absorbed by Shields 399 | . . 176 . 73 12 . . 6 132 Ignored by Resistances 1 | . . . 1 . . . . . . Regen/Repaired (Parts) 210 | . . . . 35 27 . . . 148 Core Remaining (%) 92 | 100 . . 80 . . . . 98 . Volleys Fired 110 | 21 . 73 1 1 3 . . 2 9 Largest 2 | 2 . 2 1 1 1 . . 1 1 Hottest 103 | 40 . 103 60 16 39 . . . 39 Shots Fired 133 | 42 . 75 1 1 3 . . 2 9 Gun 50 | 42 . 8 . . . . . . . Cannon 69 | . . 67 . . . . . . 2 Launcher 5 | . . . . . 1 . . . 4 Special 9 | . . . 1 1 2 . . 2 3 Kinetic 48 | 42 . 4 . . . . . . 2 Thermal 73 | . . 71 1 1 . . . . . Explosive 5 | . . . . . 1 . . . 4 Electromagnetic . | . . . . . . . . . . Robot Hit Streak 16 | 5 . 15 . 16 1 . . 1 3 Robot Miss Streak 4 | 2 . 4 . . 1 . . 1 2 Penetration Max . | . . . . . . . . . . Secondary Targets . | . . . . . . . . . . Shots Hit Robots 109 | 28 . 54 1 4 1 . . 1 20 Core Hits 41 | 8 . 16 1 2 1 . . . 13 Critical Kills . | . . . . . . . . . . Critical Parts Destroyed . | . . . . . . . . . . Critical Strikes 5 | . . . . . . . . . 5 Sever 3 | . . . . . . . . . 3 Impale 2 | . . . . . . . . . 2 Melee Attacks 42 | . . . 5 5 . . 1 . 31 Thermal 5 | . . . . . . . . . 5 Impact 5 | . . . 5 . . . . . . Slashing 18 | . . . . 5 . . 1 . 12 Piercing 14 | . . . . . . . . . 14 Sneak Attacks 6 | . . . . 3 . . . . 3 Combat Hostiles . | . . . . . . . . . . Follow-up Attacks 3 | . . . . . . . . . 3 Damage Inflicted 3439 | 314 . 1379 63 260 174 . . . 1249 Guns 327 | 314 . 13 . . . . . . . Cannons 1366 | . . 1366 . . . . . . . Explosions 888 | . . . . . 174 . . . 714 Melee 839 | . . . 63 241 . . . . 535 Ramming . | . . . . . . . . . . Kinetic 327 | 314 . 13 . . . . . . . Thermal 1487 | . . 1366 . 19 . . . . 102 Explosive 888 | . . . . . 174 . . . 714 Electromagnetic . | . . . . . . . . . . Impact 63 | . . . 63 . . . . . . Slashing 347 | . . . . 241 . . . . 106 Piercing 327 | . . . . . . . . . 327 Highest Corruption . | . . . . . . . . . . Average Corruption . | . . . . . . . . . . Corruption Purged . | . . . . . . . . . . Corruption Blocked . | . . . . . . . . . . Overload Shots . | . . . . . . . . . . Overflow Damage 177 | . . . . 33 . . . . 144 Projectiles . | . . . . . . . . . . Explosions 39 | . . . . . . . . . 39 Melee 138 | . . . . 33 . . . . 105 Knockbacks . | . . . . . . . . . . Impact . | . . . . . . . . . . Kinetic . | . . . . . . . . . . Secondary . | . . . . . . . . . . Self-Inflicted Damage 74 | . . . . . . . . . 74 Shots 2 | . . . . . . . . . 2 Rammed 1 | . . . 1 . . . . . . Targets Rammed 1 | . . . 1 . . . . . . Kicked . | . . . . . . . . . . Crushed . | . . . . . . . . . . Highest Temperature 66 | . . 26 1 . . . . . 66 Average Temperature 12 | . . 9 1 . . . . . 21 Received Heat Transfer 372 | . . 52 6 7 13 . . . 294 Siege Activations . | . . . . . . . . . . Martial Activations . | . . . . . . . . . . Shielding Activations . | . . . . . . . . . . Robots Disrupted . | . . . . . . . . . . Combat Hostiles . | . . . . . . . . . . Robots Corrupted . | . . . . . . . . . . Combat Hostiles . | . . . . . . . . . . Parts Fried . | . . . . . . . . . . Impact Corruptions . | . . . . . . . . . . Robots Melted . | . . . . . . . . . . Combat Hostiles . | . . . . . . . . . . Parts Melted 6 | . . 6 . . . . . . . Heat Transferred 1935 | . . 1850 . 25 . . . . 60 Parts Sabotaged . | . . . . . . . . . . Parts Stolen . | . . . . . . . . . . Parts Stripped . | . . . . . . . . . . Power Chain Reactions . | . . . . . . . . . . Alert | -11 -10 -10 -9 -6 -6 -6 -6 -5 -5 ------- Run | Yrd Mat Sub Scr Fac Low Low Zio Pro Fac Maximum Alert Level 2 | . . . . 2 . . . . 1 Low Security (%) 53 | 100 100 . . 26 . . . . 80 Level 1 32 | . . . . 49 . . . . 19 Level 2 13 | . . . . 24 . . . . . Level 3 . | . . . . . . . . . . Level 4 . | . . . . . . . . . . Level 5 . | . . . . . . . . . . High Security . | . . . . . . . . . . Max Security . | . . . . . . . . . . Sterilizations 1 | . . . . 1 . . . . . Peak Influence 527 | 5 30 . . 527 . . . . 334 Initial 19 | . . . . . . . . . 19 Average 183 | 1 2 . . 282 . . . . 92 Influence Increases 2140 | 20 30 20 . 924 209 105 . 294 538 Destroy 0b10 Robot/C 840 | . . 20 . 240 140 60 . 180 200 Destroy 0b10 Robot/NC 95 | 20 . . . 20 . . . 10 45 Destroy Leader 100 | . . . . 30 20 10 . 20 20 Allied During Kill 347 | . . . . 120 49 20 . 84 74 Successful Hack 73 | . . . . 61 . . . . 12 Disable Machine 90 | . . . . 15 . . . . 75 Anti-Garrison Action 400 | . . . . 400 . . . . . Destroy Structure 90 | . . . . 8 . . . . 82 Partial Spotted 45 | . . . . 30 . . . . 15 Lose Combat Pursuer 60 | . 30 . . . . 15 . . 15 Influence Decreases 1993 | 20 20 30 . 469 527 242 . 262 423 Entered New Map 215 | . . 6 . . 169 27 . . 13 Time Decay 1358 | 20 20 24 . 389 318 195 . 242 150 Lost Part 120 | . . . . . . . . . 120 Lost Ally 300 | . . . . 80 40 20 . 20 140 Squads Dispatched 11 | . 1 . . 6 . . . . 4 Investigation 5 | . . . . 5 . . . . . Extermination 1 | . . . . 1 . . . . . Reinforcement 5 | . 1 . . . . . . . 4 Assault . | . . . . . . . . . . Garrison . | . . . . . . . . . . Intercept . | . . . . . . . . . . Searches Triggered . | . . . . . . . . . . Unchained Authorized 1 | . . . . . . . . . 1 Construction Impeded 2 | . . . . . . . . . 2 Haulers Reinforced 1 | . . . . . . . . . 1 Active Scanning Responses . | . . . . . . . . . . Cargo Convoy Interrupts . | . . . . . . . . . . Stealth | -11 -10 -10 -9 -6 -6 -6 -6 -5 -5 --------- Run | Yrd Mat Sub Scr Fac Low Low Zio Pro Fac Distress Signals 2 | . 1 . . . . . . . 1 Communications Jammed . | . . . . . . . . . . Distress Signals . | . . . . . . . . . . Times Spotted 99 | . 1 16 8 12 7 11 1 7 36 Peak Tracking Total 18 | . 3 2 3 3 4 4 1 4 18 Tactical Retreats 3 | . 1 . . . . 1 . . 1 Traps | -11 -10 -10 -9 -6 -6 -6 -6 -5 -5 ------- Run | Yrd Mat Sub Scr Fac Low Low Zio Pro Fac Traps Triggered 2 | . . . . 1 . . . . 1 Indirectly . | . . . . . . . . . . Trap Hack Attempts . | . . . . . . . . . . Triggered . | . . . . . . . . . . Disarmed . | . . . . . . . . . . Reprogrammed . | . . . . . . . . . . Reused 1 | . . . 1 . . . . . . Traps Extracted . | . . . . . . . . . . Installed 1 | . . . 1 . . . . . . Triggered . | . . . . . . . . . . Most Traps Carried 1 | . . . 1 . . . . . . Machines | -11 -10 -10 -9 -6 -6 -6 -6 -5 -5 ---------- Run | Yrd Mat Sub Scr Fac Low Low Zio Pro Fac Machines Disabled 9 | . . . 3 1 . . . . 5 Max in Single Turn 1 | . . . 1 1 . . . . 1 Garrison Access 2 | . . . . 2 . . . . . Machines Repaired . | . . . . . . . . . . Machines Dismantled . | . . . . . . . . . . Machines Sabotaged . | . . . . . . . . . . Overloaded Fab Kills . | . . . . . . . . . . Hacking | -11 -10 -10 -9 -6 -6 -6 -6 -5 -5 --------- Run | Yrd Mat Sub Scr Fac Low Low Zio Pro Fac Machines Accessed 18 | . 2 3 1 11 . . . . 1 Terminals 7 | . 2 . . 4 . . . . 1 Fabricators 2 | . . . . 2 . . . . . Repair Stations . | . . . . . . . . . . Recycling Units 2 | . . . . 2 . . . . . Scanalyzers 1 | . . . . 1 . . . . . Garrison Access 2 | . . . . 2 . . . . . Total Hacks 40 | . 3 6 1 28 . . . . 2 Successful 23 | . . 6 1 15 . . . . 1 Failed 17 | . 3 . . 13 . . . . 1 Catastrophic 2 | . . . . 2 . . . . . Database Lockouts . | . . . . . . . . . . Manual 20 | . 3 . . 15 . . . . 2 Terminals 12 | . 3 . . 7 . . . . 2 Fabricators 5 | . . . . 5 . . . . . Repair Stations . | . . . . . . . . . . Recycling Units 7 | . . . . 7 . . . . . Scanalyzers 4 | . . . . 4 . . . . . Garrison Access 5 | . . . . 5 . . . . . Terminal Hacks 8 | . . 6 1 1 . . . . . Record 4 | . . 4 . . . . . . . Open Door 1 | . . 1 . . . . . . . Registered Components 1 | . . . . 1 . . . . . Proto ID Catalog 1 | . . . 1 . . . . . . Release Object 1 | . . 1 . . . . . . . Fabricator Hacks 1 | . . . . 1 . . . . . Load Schematic 1 | . . . . 1 . . . . . Repair Station Hacks . | . . . . . . . . . . Recycling Unit Hacks 2 | . . . . 2 . . . . . Report Inventory 2 | . . . . 2 . . . . . Scanalyzer 3 | . . . . 3 . . . . . Insert Component 1 | . . . . 1 . . . . . Analyze 1 | . . . . 1 . . . . . Retrieve Study 1 | . . . . 1 . . . . . Garrison Access Hacks . | . . . . . . . . . . Unauthorized Hacks 9 | . . . . 8 . . . . 1 Terminals 3 | . . . . 2 . . . . 1 Track 1 | . . . . . . . . . 1 Botnet 1 | . . . . 1 . . . . . Skim 1 | . . . . 1 . . . . . Fabricators 2 | . . . . 2 . . . . . Haulers 1 | . . . . 1 . . . . . Recompile 1 | . . . . 1 . . . . . Repair Stations . | . . . . . . . . . . Recycling Units 2 | . . . . 2 . . . . . Recyclers 1 | . . . . 1 . . . . . Scrapoids 1 | . . . . 1 . . . . . Scanalyzers . | . . . . . . . . . . Garrison Access 2 | . . . . 2 . . . . . Jam 2 | . . . . 2 . . . . . Data Cores Recovered . | . . . . . . . . . . Used . | . . . . . . . . . . Hacking Detections 14 | . 2 . . 11 . . . . 1 Full Trace Events 1 | . . . . 1 . . . . . Feedback Events . | . . . . . . . . . . Feedback Blocked . | . . . . . . . . . . Robot Schematics Acquired 3 | . . . . . . . 3 . . Robots Built . | . . . . . . . . . . Authchips . | . . . . . . . . . . Time . | . . . . . . . . . . Total Robot Build Rating . | . . . . . . . . . . Part Schematics Acquired 17 | . . . . 1 . . 16 . . Parts Built . | . . . . . . . . . . Authchips . | . . . . . . . . . . Time . | . . . . . . . . . . Total Part Build Rating . | . . . . . . . . . . Part Studies Acquired 1 | . . . . 1 . . . . . Parts Repaired . | . . . . . . . . . . Time . | . . . . . . . . . . Parts Recycled . | . . . . . . . . . . Recycled Matter . | . . . . . . . . . . Retrieved Matter . | . . . . . . . . . . Retrieved Components . | . . . . . . . . . . Parts Scanalyzed 1 | . . . . 1 . . . . . Part Schematics Acquired 1 | . . . . 1 . . . . . Parts Damaged . | . . . . . . . . . . Bothacking | -11 -10 -10 -9 -6 -6 -6 -6 -5 -5 ------------ Run | Yrd Mat Sub Scr Fac Low Low Zio Pro Fac Used RIF Installer . | . . . . . . . . . . Robots Hacked 1 | . . . . . . . . . 1 Non-combat 1 | . . . . . . . . . 1 Combat . | . . . . . . . . . . Robot Hacks Applied 1 | . . . . . . . . . 1 find_chute 1 | . . . . . . . . . 1 Relay Couplers Released 2 | . . . . 2 . . . . . Machine Destruction 2 | . . . . 2 . . . . . Fabnet Peak Effective % . | . . . . . . . . . . Robots Rewired 1 | . . . . . . . . . 1 Allies Hacked . | . . . . . . . . . . Hacks Repelled . | . . . . . . . . . . Allies | -11 -10 -10 -9 -6 -6 -6 -6 -5 -5 -------- Run | Yrd Mat Sub Scr Fac Low Low Zio Pro Fac Total Allies 6 | . . . . 5 . . . . 1 Largest Group 5 | . . . . 5 3 . . . 1 Highest-Rated Group 140 | . . . . 140 84 . . . 49 Highest-Rated Ally 49 | . . . . 28 28 . . . 49 Initial UFD Resources 23 | . . . . 23 20 20 20 22 22 Total Orders 11 | . . . . 4 . . 4 . 3 STAY 6 | . . . . 2 . . 2 . 2 FOLLOW 5 | . . . . 2 . . 2 . 1 Ally Attacks 286 | . . . . 55 28 55 14 62 72 Total Damage 7830 | . . . . 1237 615 1595 439 1533 2411 Kills 56 | . . . . 12 7 8 3 11 15 Allies Corrupted 3 | . . . . . . . . 1 2 Allies Melted 6 | . . . 3 . . 1 . 1 1 Borg Created 20 | . . . . 7 3 2 1 . 7 Largest Collective 6 | . . . . 3 4 5 6 . 4 Intel | -11 -10 -10 -9 -6 -6 -6 -6 -5 -5 ------- Run | Yrd Mat Sub Scr Fac Low Low Zio Pro Fac Active Infowar (turns) 4755 | 28 200 61 4 1114 591 985 973 408 391 Sensors 4340 | . . . . 1114 591 985 973 408 269 Terrain 20 | 20 . . . . . . . . . Traps 7 | . . . . . . . . . 7 Seismic 269 | 8 200 61 . . . . . . . Triangulation 183 | . . . 4 57 . . . . 122 Robot Analysis Total . | . . . . . . . . . . Derelict Logs Recovered 11 | . . 2 5 . 3 . . 1 . Drone Launches . | . . . . . . . . . . Drone Recoveries . | . . . . . . . . . . Exploration | -11 -10 -10 -9 -6 -6 -6 -6 -5 -5 ------------- Run | Yrd Mat Sub Scr Fac Low Low Zio Pro Fac Turns Passed 13276 | 160 200 2981 4520 1129 714 985 1210 872 505 Spaces Moved 9211 | 88 166 1740 2958 759 559 873 1034 717 317 Core 11 | 3 . . . . . . . . 8 Treads 113 | . . 113 . . . . . . . Legs . | . . . . . . . . . . Wheels 7831 | 85 166 1627 1737 724 559 873 1034 717 309 Hover . | . . . . . . . . . . Flight 1256 | . . . 1221 35 . . . . . Fastest Speed 37 | 50 95 110 37 37 87 97 97 80 50 Average Speed 121 | 92 112 148 137 104 111 97 98 101 99 Slowest Speed 437 | 100 125 260 437 120 122 97 108 108 110 Overloaded Moves . | . . . . . . . . . . Propulsion Burnouts . | . . . . . . . . . . Robots Hopped . | . . . . . . . . . . Potential Cave-ins . | . . . . . . . . . . Cave-ins Triggered . | . . . . . . . . . . Exploration Rate (%) 53 | 4 31 57 90 16 61 90 85 93 10 Regions Visited 9 Branch Regions 6 Pre-discovered Areas 5 | . . 3 1 . . . 1 . . Known Exits Taken 2 | . . . . 1 . . . 1 . Unknown Exits Taken 7 | 1 1 1 1 . 1 1 1 . . Scrap Searched 26 | . . 4 11 . 1 4 2 4 . Spaces Dug 57 | . . 1 14 8 16 . . . 18 Terrain Destroyed 84 | . . 8 10 8 16 . . . 42 Melee 4 | . . . . 2 . . . . 2 Projectile 10 | . . 8 . . . . . . 2 AOE 54 | . . . . . 16 . . . 38 Terrain Rammed . | . . . . . . . . . . Walls Destroyed . | . . . . . . . . . . Machines Disabled . | . . . . . . . . . . Actions | -11 -10 -10 -9 -6 -6 -6 -6 -5 -5 --------- Run | Yrd Mat Sub Scr Fac Low Low Zio Pro Fac Total 11069 | 124 180 2080 3421 1088 644 1011 1224 856 441 Wait 1317 | 1 . 154 403 241 55 137 173 126 27 Move 9203 | 87 165 1739 2958 758 558 872 1033 716 317 Hop . | . . . . . . . . . . Pick Up 126 | 6 10 53 14 25 2 . 4 1 11 Fast Attach 41 | 7 . 3 8 10 8 . 1 3 1 Attach 31 | . . 6 5 6 1 . 1 . 12 Detach 9 | . . 1 . 6 1 . 1 . . Swap 66 | 2 2 19 3 9 4 . 4 5 18 Drop 104 | . 3 32 23 19 9 . 5 3 10 Fire 110 | 21 . 73 1 1 3 . . 2 9 Melee 39 | . . . 5 5 . . 1 . 28 Ram . | . . . . . . . . . . Kick . | . . . . . . . . . . Crush . | . . . . . . . . . . Escape Stasis . | . . . . . . . . . . Rewire 1 | . . . . . . . . . 1 Trap 1 | . . . 1 . . . . . . Miscellaneous 21 | . . . . 8 3 2 1 . 7 Route ------- -11/Scrapyard -10/Materials -10/Subcaves (discovered 2 exits: *Scr x2) -9/Scraptown (discovered 2 exits: *Fac x2) -6/Factory (discovered 8 exits: Fac x4 / *Low x2 / Ext x2) -6/Lower Caves -6/Lower Caves -6/Zion -5/Proximity Caves -5/Factory History --------- Turn | Location | Event 28 | -11/Scrapyard | Discovered new exit (range 14) 161 | -11/Scrapyard | Entered Materials 162 | -10/Materials | Met a group of wandering Federalists 268 | -10/Materials | Discovered new exit (range 6) 304 | -10/Materials | Build established: Mutant 361 | -10/Materials | Entered Subcaves 362 | -10/Subcaves | Continued accompanying wandering Federalists (5) 362 | -10/Subcaves | Approached by a straggling Scientist 489 | -10/Subcaves | Scientist uncovered a shortcut to Scraptown 501 | -10/Subcaves | Shifting Twisted Machinery released Battle Cannon 508 | -10/Subcaves | Shifting Twisted Machinery released Mak. Kinetic Plating 543 | -10/Subcaves | Visited Clippyterm 547 | -10/Subcaves | Learned location of Extension (-6) 547 | -10/Subcaves | Learned 40 Factory zone layouts 585 | -10/Subcaves | Lost 3 allies 600 | -10/Subcaves | Wandering Federalist uncovered a shortcut to Scraptown 679 | -10/Subcaves | Ambushed by Subdwellers from Twisted Machinery 741 | -10/Subcaves | Learned location of Storage (-9) 824 | -10/Subcaves | Learned location of Zion (-6) 824 | -10/Subcaves | Met a Zionite searching for "candidates" 902 | -10/Subcaves | Disturbed a concealed Subdweller 1015 | -10/Subcaves | A swath of the cavern ceiling suddenly collapsed 1302 | -10/Subcaves | Shifting Twisted Machinery released Mak. System Restoration Module 1449 | -10/Subcaves | Disturbed a concealed Subdweller 1912 | -10/Subcaves | Ambushed by Subdweller buried in earth 2219 | -10/Subcaves | Learned Materials non-interactive machine intel 2860 | -10/Subcaves | Build established: Hauler-Mutant 2995 | -10/Subcaves | Found SUBCON Basin 3342 | -10/Subcaves | Entered Scraptown 3492 | -9/Scraptown | Visited Bundlers 3588 | -9/Scraptown | Heard Great Nut preacher, LISTEN AND RECITE! 3618 | -9/Scraptown | Visited Comm Corps 3725 | -9/Scraptown | Visited CPS Storage 3756 | -9/Scraptown | Visited Cyclists 3872 | -9/Scraptown | Scanned Subdweller tech in exchange for log data 3876 | -9/Scraptown | Learned Research trap positions 3878 | -9/Scraptown | Learned Research stockpile data 3880 | -9/Scraptown | Learned Factory machine intel 3882 | -9/Scraptown | Learned location of 1 exit from Factory 3914 | -9/Scraptown | Discovered new exit (range 13) 4453 | -9/Scraptown | Visited UFD Registry 4453 | -9/Scraptown | Registered with UFD as "Alphatalker" 4504 | -9/Scraptown | Visited A0-MCA Data Center 4533 | -9/Scraptown | Visited Curators Association 4626 | -9/Scraptown | Visited LU-1G1's Boring Crew 4651 | -9/Scraptown | Visited DA-N13 Charitable Foundation 4670 | -9/Scraptown | Found DCF Scrap (27 items) 4705 | -9/Scraptown | Visited Research Penetration Think Tank 4752 | -9/Scraptown | Visited Infowarlord's Domain 4773 | -9/Scraptown | Visited Science Guys 4842 | -9/Scraptown | Visited Observation Area 4915 | -9/Scraptown | Visited Junk Repository 5232 | -9/Scraptown | Guru changed UFD alias to "Gammathruster" 5857 | -9/Scraptown | Given a C+ rating by A0-MCA 5863 | -9/Scraptown | Found A0-MCA's Component Scanner 6231 | -9/Scraptown | Entered Cyclist Reading Room 6428 | -9/Scraptown | Visited Red Mages 6838 | -9/Scraptown | Discovered new exit (range 3) 7267 | -9/Scraptown | Warned about trapping Scraptown 7286 | -9/Scraptown | Build established: Derelict-Mutant 7357 | -9/Scraptown | Met Optimus 7357 | -9/Scraptown | Accepted into 0bPrime 7757 | -9/Scraptown | Civil war broke out across Scraptown 7762 | -9/Scraptown | Found Prototype Special Weapon 7762 | -9/Scraptown | Identified LU-1G1's Laser Shovel 7794 | -9/Scraptown | Found DM-GVY's Chainsaw 7827 | -9/Scraptown | Found Prototype Special Weapon 7848 | -9/Scraptown | Found Thermal Lance 7862 | -9/Scraptown | Entered Factory 7862 | -6/Factory | Evolved 8 slots: Propulsion x2, Utility x3, Weapon x3 7863 | -6/Factory | Identified exit to Factory 7863 | -6/Factory | Found Prototype Special Melee Weapon 7864 | -6/Factory | Identified exit to Extension 7864 | -6/Factory | Identified exit to Lower Caves 7864 | -6/Factory | Identified Exp. Plasma Cutter 7865 | -6/Factory | Loaded intel: 299 machine locations 7867 | -6/Factory | Identified 1B-0RG's Assimilator 7882 | -6/Factory | Lost 10 allies 7950 | -6/Factory | Released subatomizers from SUBCON Basin 8153 | -6/Factory | Assimilating Slayer 5a into Collective. 8189 | -6/Factory | Assimilating Administrator 5a into Collective. 8228 | -6/Factory | Build established: Scavenger-Mutant 8408 | -6/Factory | Assimilating Guardian 5a into Collective. 8466 | -6/Factory | Assimilating Hacker 5a into Collective. 8474 | -6/Factory | Scrapoid reinforcements arrived 8639 | -6/Factory | Assimilating Machinist 5a into Collective. 8653 | -6/Factory | Assimilating Conveyor 5a into Collective. 8857 | -6/Factory | Found Scrap Suit 8881 | -6/Factory | Sterilization system engaged 8881 | -6/Factory | Non-combat units ordered to evacuate 8948 | -6/Factory | Assimilating 06F04-D into Collective. 8981 | -6/Factory | Combat units ordered to evacuate 8991 | -6/Factory | Entered Lower Caves 8991 | -6/Lower Caves | Accompanied by 5 allies 9080 | -6/Lower Caves | Learned Factory emergency access door positions 9154 | -6/Lower Caves | Assimilating 5R-J60(S) into Collective. 9222 | -6/Lower Caves | Learned Factory terminal intel 9272 | -6/Lower Caves | Assimilating 06F02-D into Collective. 9499 | -6/Lower Caves | Attached CPS modules to Borg 06F02-D. 9512 | -6/Lower Caves | Found Scrap Suit 9586 | -6/Lower Caves | Discovered new exit (range 9) 9678 | -6/Lower Caves | Assimilating 0K-V9L(S) into Collective. 9705 | -6/Lower Caves | Entered another Lower Caves area 9705 | -6/Lower Caves | Accompanied by 4 allies 9785 | -6/Lower Caves | Build established: Scavenger-Scrapper 9894 | -6/Lower Caves | Assimilating Soldier 5a into Collective. 10079 | -6/Lower Caves | Entered a destroyed Warlord outpost 10165 | -6/Lower Caves | Attacked by a faux Warlord 10168 | -6/Lower Caves | Assimilating C6-39X(M) into Collective. 10194 | -6/Lower Caves | Discovered new exit (range 15) 10690 | -6/Lower Caves | Entered Zion 10690 | -6/Zion | Accompanied by 5 allies 10718 | -6/Zion | Found Phasing AFG 10755 | -6/Zion | Discovered new exit (range 14) 10791 | -6/Zion | Given A8's code to call for help 10926 | -6/Zion | Learned Factory repair station intel 11135 | -6/Zion | Learned location of Quarantine (-3) 11157 | -6/Zion | Found CR-A16's Pointy Stick 11408 | -6/Zion | Turned away by Imprinter 11684 | -6/Zion | Assimilating MZ-8NZ(B) into Collective. 11685 | -6/Zion | Attacked by Zionites 11686 | -6/Zion | Spotted NF-3QB(B) 11691 | -6/Zion | Allies destroyed NF-3QB(B) 11789 | -6/Zion | Allies destroyed Imprinter 11900 | -6/Zion | Entered Proximity Caves 11900 | -5/Proximity Caves | Accompanied by 6 allies 12151 | -5/Proximity Caves | Attached CPS modules to Borg MZ-8NZ(B). 12189 | -5/Proximity Caves | Learned Factory stockpile data 12772 | -5/Proximity Caves | Entered Factory 12772 | -5/Factory | Accompanied by 4 allies 12772 | -5/Factory | Evolved 2 slots: Utility x1, Weapon x1 12775 | -5/Factory | Loaded intel: 26 terminal locations 12776 | -5/Factory | Loaded intel: 6 repair station locations 12965 | -5/Factory | Unchained authorized (V4-D3R) 13000 | -5/Factory | Assimilating Sentinel 6a into Collective. 13081 | -5/Factory | Assimilating Slayer 6a into Collective. 13091 | -5/Factory | Assimilating Slayer 6b into Collective. 13183 | -5/Factory | Assimilating Slayer 6c into Collective. 13192 | -5/Factory | Assimilating Slayer 6d into Collective. 13201 | -5/Factory | Assimilating Soldier 6a into Collective. 13203 | -5/Factory | Assimilating Soldier 6b into Collective. 13238 | -5/Factory | Core integrity fell below 50% 13247 | -5/Factory | Core integrity fell below 20% 13252 | -5/Factory | Attached CPS modules to V4-D3R. 13255 | -5/Factory | Destroyed V4-D3R 13258 | -5/Factory | Found Med. Regenerative Plating 13264 | -5/Factory | Found V4-D3R's Cape 13267 | -5/Factory | Found V4-D3R's Forcegen 13272 | -5/Factory | Released all parts (7) 13277 | -5/Factory | Destroyed by TK-5661 with Heavy Laser Last Messages --------------- 13271_ U-05 Engineer lays Concrete. 13271_ Med. Regenerative Plating severed. 13272_ U-05 Engineer lays Concrete. 13272_ Released A0-MCA's Component Scanner. 13272_ Released Hcp. Storage Unit. 13272_ Released Adv. Melee Analysis Suite. 13272_ Released Thermal Lance. 13272_ Released Imp. Energy Well. 13272_ Released Lrn. Tractor Beam. 13272_ Released Antimatter Cannon. 13272_ Dropped Triangulator. 13273_ U-05 Engineer lays Concrete. 13273_ Acquired V4-D3R's Forcegen. 13273_ TK-0357 destroyed. 13273_ L-41 Fighter suffers critical hit (Burn). 13274_ U-05 Engineer lays Concrete. 13274_ K-01 Serf collects debris. 13275_ Acquired 45 matter. 13275_ U-05 Engineer lays Concrete. 13277_ K-01 Serf collects debris. Map ----- +----------------------------------------------------+ | ?????????????????????????????????????????????????? | | ?????????????????????????????????????????????????? | | ?????????????????????????????????????????????????? | | ?????????????????????????????????????????????????? | | ?????????+???????????????????????????????????????? | | ?????????????????????????????????????????????????? | | ?????????????????????????????????????????????????? | | ?????????????????????????????????????????????????? | | ?????????????????????????????????????????????????? | | ?????????????????????????????????????????""??????? | | ??????????????????????? g?????????????""??????? | | ??????????????????????# g #????????????T"??????? | | ??????????????????????# g#????????????""??????? | | ??????????????????????# #????????????""??????? | | ??????????????????????# #????????????????????? | | ??????????????????????# g #????????????????????? | | ???????+??????????????# #????????????????????? | | ????????????????####??# #????????????????????? | | ?????"""????????? ?# g#????????????????????? | | ?????"R??????????? ?# #????????????????????? | | ?????"""???? + ?? # #????????????????????? | | ???????????" ? ?? # #????????????????????? | | ?????????""" ? ??? ;^ ^ #????????????????????? | | ??????????"" ? ?????# #????????????????????? | | ?????????? ? ?????# g#????????????????????? | | ###??##+###+#? ??????# @ #????????"" ????????? | | ?# #? ??????# gk #???????" ????????? | | # ##+###+#### g #?????? ???????? | | " # # ## #????? ! ???????? | | # # """ ## %=###### #????????? | | # # """ ## = #????????? | | # # """ ## !l! ! #????????? | | # s + # /!!l* =!! #????????? | | # ! ###+### /!]!! * !! #????????? | | # ! !u!=![ = " = #?????????? | | # ! * !| [ " "" / ????????? | | # "" * = =% g "" ##?????????? | | # "T = * !=! """" #??????????? | | # "" " k #%########??????????? | | ###### [ " #|=! ?????+??????????? | | #=! ! =""" " " # ???????????????? | | # = ! * # """"""?????????????? | | !! !+*! "" """ " """ # """"""?????????????? | | ! !=#* """ """ """ """ + """""" ????????????? | | | * ### """k""" """ """ # """????????????????? | | ######?# # ???????????????????? | | #??????# # ???????????????????? | | #??????# ############## ##???????????????????? | | #??????# #????????????? #????????????????????? | | # """?+ #????????????? ????????????????????? | +----------------------------------------------------+ Best States ------------- Heat Dissipation 40 Energy Generation 18 Energy Capacity 500 Matter Stores 490 Matter Capacity 500 Sight Range 16 Robot Scan Range 15 Terrain Scan Range 16 Terrain Scan Density 10 Additional Mass Support 6 Armor Coverage 225 Resistance: TH 10 Melee Speed Boost 20 Evasion (%) 62 Melee Accuracy 8 Recoil Reduction 1 Authchip Count 1 Item Schematics ----------------- CPS Tube | -6/Factory | Scanalyzed Lgt. Angular Momentum Engine | -6/Zion | Archive Remote Force Field | -6/Zion | Archive Falx | -6/Zion | Archive Imp. Kinecellerator | -6/Zion | Archive Imp. System Shield | -6/Zion | Archive Imp. Focal Shield | -6/Zion | Archive Imp. Cryofiber Web | -6/Zion | Archive Adv. Focal Shield | -6/Zion | Archive Adv. Transmission Jammer | -6/Zion | Archive EM Shield | -6/Zion | Archive Adv. Cooling System | -6/Zion | Archive Imp. Recalibrator | -6/Zion | Archive Lyr. Medium Armor Plating | -6/Zion | Archive Hvy. Machine Gun | -6/Zion | Archive Adv. System Restoration Module | -6/Zion | Archive Lrn. Phase Cannon | -6/Zion | Archive Robot Schematics ------------------ R-06 Scavenger | -6/Zion | Archive T-07 Excavator | -6/Zion | Archive A-15 Conveyor | -6/Zion | Archive Fabricated ------------ Nothing Repaired ---------- Nothing Studied --------- Com. Wheel | -6/Factory | Hacked Alien Tech Used ----------------- None Achievements -------------- None Challenges ------------ None Game ------ Seed GrapheneFlyingFrame Manual? 0 Play Time 02:37:49 Cumulative 1276.5 hours Start 2026.01.22 @ 18:49:51 End 2026.01.24 @ 18:18:09 Sessions 3 Manual Loads 0 Difficulty Rogue Special Mode None Game No. 436 Rogue 431 Adventurer 4 Explorer 1 Win Type - Total 28 Types 15/5/1/2/0/1/1/0/2/1 Lore% 97 Gallery% 96 Achievement% 83 Wizard Run 0 Options --------- Layout 0 ASCII 0 Keyboard 0 Movement Numpad Keybinds 0 Fullscreen 2 Font 18/SmallcapsGlow Map View 76x50 Zoom Use 0% Tactical HUD 1 Map Filters NONE Filters NONE Steam 1 RUN: 2101d4f7-f908-4d33-b1ad-7a9fb77da9df